bitfinex/quotes_BTCUSD_20251009
["timestamp","ask_amount","ask_price","bid_price","bid_amount"]
[1759998504452,2.08732313,121430.0,121420.0,1e-08]
[1759998505328,2.02809959,121430.0,121420.0,1e-08]
[1759998505541,2.02809959,121430.0,121420.0,0.00051443]
[1759998505964,2.02807807,121430.0,121420.0,0.00051443]
[1759998506368,1.94804127,121430.0,121420.0,0.00051443]
[1759998507007,1.94804127,121430.0,121420.0,1e-08]
[1759998507213,1.28412127,121430.0,121420.0,1e-08]
[1759998507433,1.94812127,121430.0,121420.0,1e-08]
[1759998508292,1.28412127,121430.0,121420.0,1e-08]
[1759998508497,2.07881363,121430.0,121420.0,1e-08]
[1759998509721,1.41481363,121430.0,121420.0,1e-08]
[1759998509935,2.07885363,121430.0,121420.0,1e-08]
[1759998510146,2.05385364,121430.0,121420.0,1e-08]
[1759998510359,2.05381364,121430.0,121420.0,1e-08]
[1759998510566,2.05377364,121430.0,121420.0,1e-08]
[1759998511211,2.07877363,121430.0,121420.0,1e-08]
[1759998511429,2.08638922,121430.0,121420.0,1e-08]
[1759998512671,0.9718477,121430.0,121420.0,1e-08]
[1759998512912,2.07881363,121430.0,121420.0,1e-08]
[1759998513596,2.08643067,121430.0,121420.0,1e-08]
[1759998515109,1.34243387,121430.0,121420.0,1e-08]
[1759998515324,1.95573831,121430.0,121420.0,1e-08]
[1759998515925,1.87005831,121430.0,121420.0,1e-08]
[1759998516106,1.95573831,121430.0,121420.0,1e-08]
[1759998516401,1.26158641,121430.0,121420.0,1e-08]
[1759998516608,1.33396617,121430.0,121420.0,1e-08]
[1759998517026,1.99796617,121430.0,121420.0,1e-08]
[1759998517422,1.33396617,121430.0,121420.0,1e-08]
[1759998517659,1.91796937,121430.0,121420.0,1e-08]
[1759998518980,1.68248937,121430.0,121420.0,1e-08]
[1759998519183,1.91800937,121430.0,121420.0,1e-08]
[1759998519390,1.92564074,121430.0,121420.0,1e-08]
[1759998519591,1.92564079,121430.0,121420.0,1e-08]
[1759998519792,1.91800937,121430.0,121420.0,1e-08]
[1759998520217,2.0055997,121430.0,121420.0,1e-08]
[1759998520461,2.08717542,121430.0,121420.0,1e-08]
[1759998520671,2.06144717,121430.0,121420.0,1e-08]
[1759998520879,2.0357516,121430.0,121420.0,1e-08]
[1759998521087,1.8002716,121430.0,121420.0,1e-08]
[1759998521294,1.3717516,121430.0,121420.0,1e-08]
[1759998521450,2.0357516,121430.0,121420.0,1e-08]
[1759998521861,1.9518827,121430.0,121420.0,1e-08]
[1759998522276,1.7164027,121430.0,121420.0,1e-08]
[1759998522449,1.9518827,121430.0,121420.0,1e-08]
[1759998523076,1.7164027,121430.0,121420.0,1e-08]
[1759998523285,1.9518827,121430.0,121420.0,1e-08]
[1759998523615,1.74209827,121430.0,121420.0,1e-08]
[1759998523828,1.97761827,121430.0,121420.0,1e-08]
[1759998524059,2.1595252,121430.0,121420.0,1e-08]
[1759998524197,1.23815631,121410.0,121400.0,1e-08]
[1759998524567,1.69843979,121410.0,121400.0,1e-08]
[1759998524877,1.82737979,121410.0,121400.0,1e-08]
[1759998525057,1.88071351,121410.0,121400.0,1e-08]
[1759998525953,1.92206629,121410.0,121400.0,1e-08]
[1759998526620,1.68658629,121410.0,121400.0,1e-08]
[1759998526794,1.84210949,121410.0,121400.0,1e-08]
[1759998527028,1.90274782,121410.0,121400.0,1e-08]
[1759998527210,1.66722782,121410.0,121400.0,1e-08]
[1759998527355,2.12612867,121410.0,121400.0,1e-08]
[1759998527723,2.29085974,121410.0,121400.0,1e-08]
[1759998528063,2.91011456,121410.0,121400.0,1e-08]
[1759998528277,2.37085654,121410.0,121400.0,1e-08]
[1759998529095,1.59607852,121410.0,121400.0,1e-08]
[1759998529274,2.13533654,121410.0,121400.0,1e-08]
[1759998529483,1.70681654,121410.0,121400.0,1e-08]
[1759998529687,2.37085654,121410.0,121400.0,1e-08]
[1759998529895,2.37085654,121410.0,121400.0,0.00102905]
[1759998530125,2.26078784,121410.0,121400.0,0.00102905]
[1759998530357,2.29093974,121410.0,121400.0,0.00102905]
[1759998530563,1.62681974,121410.0,121400.0,0.00102905]
[1759998530761,2.29093974,121410.0,121400.0,0.00102905]
[1759998531168,1.59666784,121410.0,121400.0,0.00102905]
[1759998531373,1.62681974,121410.0,121400.0,0.00102905]
[1759998531572,1.7670085,121410.0,121400.0,0.00102905]
[1759998531844,2.00254395,121410.0,121400.0,0.00102905]
[1759998532011,1.33842395,121410.0,121400.0,0.00102905]
[1759998532616,1.65966395,121410.0,121400.0,0.00102905]
[1759998533186,1.14314527,121410.0,121400.0,0.00102905]
[1759998533396,1.65966395,121410.0,121400.0,0.00102905]
[1759998533636,1.20024562,121410.0,121400.0,0.00102905]
[1759998533838,1.52148562,121410.0,121400.0,0.08096905]
[1759998534205,0.09886315,121410.0,121400.0,0.32536369]
[1759998534396,0.09886315,121410.0,121400.0,0.16061905]
[1759998534397,0.31914463,121410.0,121400.0,0.16061905]
[1759998534608,0.4838757,121410.0,121400.0,0.16061905]
[1759998534810,0.74213504,121410.0,121400.0,0.16061905]
[1759998535017,0.31914463,121410.0,121400.0,0.16061905]
[1759998535221,0.08362463,121410.0,121400.0,0.32536369]
[1759998535466,0.4838757,121410.0,121400.0,0.16061905]
[1759998535881,0.74213504,121410.0,121400.0,0.16061905]
[1759998536503,0.82213184,121410.0,121400.0,0.08096905]
[1759998536826,0.74213504,121410.0,121400.0,0.08096905]
[1759998537039,0.4838757,121410.0,121400.0,0.08096905]
[1759998537278,0.74213504,121410.0,121400.0,0.08096905]
[1759998537486,0.84011504,121410.0,121400.0,0.08096905]
[1759998537915,1.06426687,121410.0,121400.0,0.00102905]
[1759998538120,1.59629118,121410.0,121400.0,0.00102905]
[1759998538340,1.62103494,121410.0,121400.0,0.00102905]
[1759998538764,1.30555814,121410.0,121400.0,0.00102905]
[1759998538991,1.54103814,121410.0,121400.0,0.00102905]
[1759998539259,0.27309946,121410.0,121400.0,0.42353839]
[1759998539464,0.00050257,121410.0,121400.0,0.33002369]
[1759998541180,0.16523364,121410.0,121400.0,0.16527905]
[1759998541388,0.00050257,121410.0,121400.0,0.33002369]
[1759998541594,0.23626257,121410.0,121400.0,0.33002369]
[1759998541855,0.23626257,121410.0,121400.0,0.16527905]
[1759998541856,0.16523364,121410.0,121400.0,0.16527905]
[1759998542045,0.6148314,121410.0,121400.0,0.16527905]
[1759998542284,0.2483557,121410.0,121400.0,0.16527905]
[1759998542486,0.00050257,121410.0,121400.0,0.33002369]
[1759998542695,0.16523364,121410.0,121400.0,0.16527905]
[1759998542906,0.40095364,121410.0,121400.0,0.16527905]
[1759998543526,9.00703921,121410.0,121400.0,0.33002369]
[1759998543878,8.84230814,121410.0,121400.0,0.33002369]
[1759998544085,9.00703921,121410.0,121400.0,0.33002369]
[1759998544650,9.00703921,121410.0,121400.0,0.16527905]
[1759998544862,8.77131921,121410.0,121400.0,0.16527905]
[1759998545242,9.00695921,121410.0,121400.0,0.16527905]
[1759998545483,9.00691921,121410.0,121400.0,0.16527905]
[1759998546150,8.77131921,121410.0,121400.0,0.16527905]
[1759998546354,9.00691921,121410.0,121400.0,0.16527905]
[1759998546770,9.00691921,121410.0,121400.0,0.08192905]
[1759998546985,10.05245377,121410.0,121400.0,0.02534905]
[1759998547220,9.97445377,121410.0,121400.0,0.08192905]
[1759998547433,9.37241807,121410.0,121400.0,0.08192905]
[1759998547638,9.89445697,121410.0,121400.0,0.02534905]
[1759998547846,9.73685697,121410.0,121400.0,0.02534905]
[1759998548056,9.89445697,121410.0,121400.0,0.02534905]
[1759998548484,9.65889697,121410.0,121400.0,0.02534905]
[1759998548684,9.97241697,121410.0,121400.0,0.02534905]
[1759998548896,10.00222777,121410.0,121400.0,0.02534905]
[1759998549115,10.00222777,121410.0,121400.0,0.00102905]
[1759998549320,9.63575207,121410.0,121400.0,0.00102905]
[1759998549542,10.02696896,121410.0,121400.0,0.00102905]
[1759998551425,9.79140896,121410.0,121400.0,0.00102905]
[1759998551636,10.02696896,121410.0,121400.0,0.00102905]
[1759998551993,10.02692896,121410.0,121400.0,0.00102905]
[1759998555413,9.42493326,121410.0,121400.0,0.00102905]
[1759998555639,10.05801697,121410.0,121400.0,0.00102905]
[1759998556023,9.69154127,121410.0,121400.0,0.00102905]
[1759998556228,10.05801697,121410.0,121400.0,0.00102905]
[1759998556661,9.73685697,121410.0,121400.0,0.00102905]
[1759998557001,10.05801697,121410.0,121400.0,0.00102905]
[1759998557516,10.11290183,121410.0,121400.0,0.00102905]
[1759998557716,10.05801697,121410.0,121400.0,0.00102905]
[1759998558845,9.69154127,121410.0,121400.0,0.00102905]
[1759998558999,10.05801697,121410.0,121400.0,0.00102905]
[1759998559376,9.69154127,121410.0,121400.0,0.00102905]
[1759998559578,10.05801697,121410.0,121400.0,0.00102905]
[1759998560222,10.13801377,121410.0,121400.0,0.00102905]
[1759998561490,10.05801697,121410.0,121400.0,0.00102905]
[1759998561937,10.20791919,121410.0,121400.0,0.00102905]
[1759998562177,9.97243919,121410.0,121400.0,0.00102905]
[1759998562291,10.20791919,121410.0,121400.0,0.00102905]
[1759998562721,9.69154127,121410.0,121400.0,0.00102905]
[1759998562923,10.20791919,121410.0,121400.0,0.00102905]
[1759998563101,9.97243919,121410.0,121400.0,0.00102905]
[1759998563459,10.20791919,121410.0,121400.0,0.00102905]
[1759998563868,9.88675919,121410.0,121400.0,0.00102905]
[1759998564026,10.20791919,121410.0,121400.0,0.00102905]
[1759998564871,9.69154127,121410.0,121400.0,0.00102905]
[1759998565089,10.20791919,121410.0,121400.0,0.00102905]
[1759998565329,9.88675919,121410.0,121400.0,0.00102905]
[1759998565539,10.20791919,121410.0,121400.0,0.00102905]
[1759998566191,9.88675919,121410.0,121400.0,0.00102905]
[1759998566421,8.85444127,121410.0,121400.0,0.07159905]
[1759998566620,9.26498817,121410.0,121400.0,0.15241905]
[1759998566963,9.02950817,121410.0,121400.0,0.15241905]
[1759998567168,9.26498817,121410.0,121400.0,0.15241905]
[1759998567822,9.02950817,121410.0,121400.0,0.15241905]
[1759998568022,9.00679921,121410.0,121400.0,0.15241905]
[1759998569692,8.60658814,121410.0,121400.0,0.31716369]
[1759998569898,8.84206814,121410.0,121400.0,0.31716369]
[1759998570102,8.77131921,121410.0,121400.0,0.15241905]
[1759998570304,9.00679921,121410.0,121400.0,0.15241905]
[1759998570723,9.37338148,121410.0,121400.0,0.15241905]
[1759998571265,9.00679921,121410.0,121400.0,0.15241905]
[1759998571469,9.13790148,121410.0,121400.0,0.15241905]
[1759998571691,9.13790148,121410.0,121400.0,0.07159905]
[1759998571692,9.37338148,121410.0,121400.0,0.07159905]
[1759998571850,9.71299034,121410.0,121400.0,0.00102905]
[1759998572085,10.05299034,121410.0,121400.0,0.00102905]
[1759998573552,9.97299354,121410.0,121400.0,0.00102905]
[1759998574167,9.73751354,121410.0,121400.0,0.00102905]
[1759998574384,9.97299354,121410.0,121400.0,0.00102905]
[1759998574799,9.82319354,121410.0,121400.0,0.00102905]
[1759998575007,10.05867354,121410.0,121400.0,0.00102905]
[1759998575589,10.27667354,121410.0,121400.0,0.00102905]
[1759998578364,10.35667034,121410.0,121400.0,0.00102905]
[1759998579216,10.27667354,121410.0,121400.0,0.00102905]
[1759998580513,9.95551354,121410.0,121400.0,0.00102905]
[1759998580724,9.91009127,121410.0,121400.0,0.00102905]
[1759998580949,10.27667354,121410.0,121400.0,0.00102905]
[1759998583929,10.36090398,121410.0,121400.0,0.00102905]
[1759998584130,10.44090078,121410.0,121400.0,0.00102905]
[1759998585165,10.11974078,121410.0,121400.0,0.00102905]
[1759998585345,10.03974398,121410.0,121400.0,0.00102905]
[1759998585545,10.36086398,121410.0,121400.0,0.00102905]
[1759998585983,10.27518398,121410.0,121400.0,0.00102905]
[1759998586162,10.36086398,121410.0,121400.0,0.00102905]
[1759998587212,10.12542398,121410.0,121400.0,0.00102905]
[1759998587431,10.4665751,121410.0,121400.0,1e-08]
[1759998587690,10.48091667,121410.0,121400.0,1e-08]
[1759998588413,10.24547667,121410.0,121400.0,1e-08]
[1759998588628,10.51106857,121410.0,121400.0,1e-08]
[1759998589075,10.53678289,121410.0,121400.0,1e-08]
[1759998589289,10.53678289,121410.0,121380.0,1e-08]
[1759998589290,0.16475821,121390.0,121380.0,1e-08]
[1759998589516,0.16475821,121390.0,121360.0,0.08606341]
[1759998589517,0.16478536,121370.0,121360.0,0.08606341]
[1759998589734,0.50479894,121360.0,121350.0,0.02430078]
[1759998589957,1.62077445,121360.0,121350.0,0.02430078]
[1759998590176,1.65044143,121360.0,121350.0,0.02430078]
[1759998590388,1.09463147,121360.0,121350.0,0.02430078]
[1759998590602,2.21303349,121360.0,121350.0,0.02430078]
[1759998590822,1.66540735,121360.0,121350.0,1e-08]
[1759998591065,1.64010551,121360.0,121350.0,1e-08]
[1759998591282,1.90084735,121360.0,121350.0,1e-08]
[1759998591508,2.34474612,121360.0,121350.0,1e-08]
[1759998591937,2.55818588,121360.0,121350.0,1e-08]
[1759998592157,2.53034221,121360.0,121350.0,1e-08]
[1759998592424,0.99144428,121360.0,121350.0,1e-08]
[1759998592635,2.5380087,121360.0,121350.0,1e-08]
[1759998592867,0.50481252,121350.0,121340.0,0.00130494]
[1759998593079,1.40258069,121350.0,121340.0,0.00130494]
[1759998593317,0.84071989,121350.0,121340.0,0.00130494]
[1759998593530,1.45344827,121350.0,121340.0,0.00130494]
[1759998593753,1.21796827,121350.0,121340.0,0.00130494]
[1759998593970,1.24581194,121350.0,121340.0,0.00130494]
[1759998594188,1.48129194,121350.0,121340.0,0.00130494]
[1759998594409,1.45344827,121350.0,121340.0,0.00130494]
[1759998594618,1.45344827,121350.0,121330.0,0.03186763]
[1759998594619,0.5048261,121340.0,121330.0,0.03186763]
[1759998594826,1.35633552,121340.0,121330.0,0.03186763]
[1759998595060,1.35633552,121340.0,121270.0,0.04827957]
[1759998595061,0.16490765,121280.0,121270.0,0.04827957]
[1759998595278,0.1801113,121280.0,121270.0,0.04827957]
[1759998595715,0.5108313,121280.0,121270.0,0.04827957]
[1759998595924,0.7266621,121280.0,121270.0,0.04827957]
[1759998596142,0.5108313,121280.0,121270.0,0.0549761]
[1759998596362,0.96268375,121280.0,121270.0,0.0549761]
[1759998596589,1.20019823,121280.0,121270.0,0.0549761]
[1759998596791,0.0157053,121280.0,121270.0,0.0549761]
[1759998597214,0.55490501,121280.0,121270.0,0.0549761]
[1759998597421,0.95060581,121280.0,121270.0,0.0549761]
[1759998597646,0.26373501,121280.0,121270.0,0.0549761]
[1759998597885,0.95060581,121280.0,121270.0,0.0549761]
[1759998598101,0.31938501,121280.0,121270.0,0.0549761]
[1759998598319,0.26373501,121280.0,121270.0,0.0549761]
[1759998598526,0.49925501,121280.0,121270.0,0.0549761]
[1759998598775,0.31938501,121280.0,121270.0,0.0549761]
[1759998598987,0.55490501,121280.0,121270.0,0.0549761]
[1759998599214,1.00625581,121280.0,121270.0,0.0549761]
[1759998599429,1.05642341,121280.0,121270.0,0.0549761]
[1759998599645,1.13708012,121280.0,121270.0,0.0549761]
[1759998599849,0.68536261,121280.0,121270.0,0.0359761]
[1759998600067,0.35893501,121280.0,121270.0,0.0359761]
[1759998600286,0.28850055,121280.0,121270.0,0.0359761]
[1759998600509,1.11110252,121280.0,121270.0,0.0359761]
[1759998600716,1.23094252,121280.0,121270.0,0.0359761]
[1759998600915,1.31093932,121280.0,121270.0,0.0359761]
[1759998601133,1.38621252,121280.0,121270.0,0.0359761]
[1759998601370,1.46650252,121280.0,121270.0,0.0359761]
[1759998601597,1.23094252,121280.0,121270.0,0.0359761]
[1759998601850,1.46650252,121280.0,121270.0,0.0359761]
[1759998602062,1.57434299,121280.0,121270.0,0.0359761]
[1759998602491,1.33878299,121280.0,121270.0,0.0359761]
[1759998602757,1.25878619,121280.0,121270.0,0.0359761]
[1759998602977,1.57836144,121280.0,121270.0,0.0359761]
[1759998603628,1.58245442,121280.0,121270.0,0.0359761]
[1759998603844,2.0340787,121280.0,121270.0,0.0359761]
[1759998604272,1.13064368,121280.0,121270.0,0.0359761]
[1759998604503,1.58236119,121280.0,121270.0,0.0359761]
[1759998604725,2.0340787,121280.0,121270.0,0.0359761]
[1759998604936,1.9483187,121280.0,121270.0,0.0359761]
[1759998605167,1.89528929,121280.0,121270.0,0.0359761]
[1759998606038,2.3470068,121280.0,121270.0,0.0359761]
[1759998606254,2.4270036,121280.0,121270.0,0.0359761]
[1759998606496,1.31660929,121280.0,121270.0,0.0359761]
[1759998606704,1.55220929,121280.0,121270.0,0.0359761]
[1759998607119,1.46648929,121280.0,121270.0,0.0359761]
[1759998607336,1.23084929,121280.0,121270.0,0.0359761]
[1759998607538,1.56814455,121280.0,121270.0,0.0359761]
[1759998607784,1.24674455,121280.0,121270.0,0.0359761]
[1759998607993,1.55224929,121280.0,121270.0,0.0359761]
[1759998608206,0.77913178,121280.0,121270.0,0.0359761]
[1759998608435,1.15055929,121280.0,121270.0,0.0359761]
[1759998608660,1.23084929,121280.0,121270.0,0.0359761]
[1759998608877,0.09873413,121280.0,121270.0,0.0359761]
[1759998609086,0.01561207,121280.0,121270.0,0.20089735]
[1759998609513,0.61712681,121280.0,121270.0,0.0359761]
[1759998610157,0.85276681,121280.0,121270.0,0.0359761]
[1759998610417,0.4010493,121280.0,121270.0,0.0359761]
[1759998610632,0.63992079,121280.0,121270.0,0.0359761]
[1759998610847,1.0916383,121280.0,121270.0,0.0359761]
[1759998611061,0.87573887,121280.0,121270.0,0.0359761]
[1759998611271,1.11137887,121280.0,121270.0,0.0359761]
[1759998611484,0.79544887,121280.0,121270.0,0.0359761]
[1759998611751,0.33429136,121280.0,121270.0,0.0359761]
[1759998611962,0.1654093,121280.0,121270.0,0.0359761]
[1759998612187,0.23614165,121280.0,121270.0,0.0359761]
[1759998612401,0.1654093,121280.0,121270.0,0.0359761]
[1759998612619,0.4010493,121280.0,121270.0,0.0359761]
[1759998612841,0.1654093,121280.0,121270.0,0.0359761]
[1759998613062,0.1654093,121280.0,121270.0,0.23104925]
[1759998613063,0.00050165,121280.0,121270.0,0.23104925]
[1759998613276,0.21950165,121280.0,121270.0,0.46684925]
[1759998613916,0.21950165,121280.0,121270.0,0.54997131]
[1759998614139,0.21950165,121280.0,121270.0,0.31417131]
[1759998614377,0.21950165,121280.0,121270.0,0.3391713]
[1759998614595,0.21950165,121280.0,121270.0,0.5749713]
[1759998615036,0.21950165,121280.0,121270.0,0.77917129]
[1759998615242,0.21950165,121280.0,121270.0,1.01501129]
[1759998615457,0.21950165,121280.0,121270.0,0.86493129]
[1759998615686,0.21950165,121280.0,121270.0,1.10081129]
[1759998616120,0.06619503,121320.0,121310.0,0.16486687]
[1759998616332,0.06619503,121320.0,121310.0,0.16491701]
[1759998617416,0.74064001,121330.0,121320.0,0.16485328]
[1759998618323,0.34,121330.0,121320.0,0.16485328]
[1759998618562,0.74063969,121330.0,121320.0,0.16485328]
[1759998618788,0.74059969,121330.0,121320.0,0.16485328]
[1759998619023,0.16485328,121320.0,121310.0,5.014e-05]
[1759998619252,0.16485328,121320.0,121310.0,0.16491701]
[1759998619490,0.74059969,121330.0,121320.0,0.16485328]
[1759998619705,0.74821104,121330.0,121320.0,0.16485328]
[1759998619940,0.51245104,121330.0,121320.0,0.16485328]
[1759998620183,0.42576,121350.0,121330.0,0.16483127]
[1759998620420,0.02283046,121350.0,121340.0,0.1648261]
[1759998620645,0.17242267,121350.0,121340.0,0.1648261]
[1759998620873,0.17242267,121350.0,121330.0,0.17118042]
[1759998621080,0.17242267,121350.0,121340.0,0.1648261]
[1759998621918,0.40814267,121350.0,121340.0,0.1648261]
[1759998622162,0.40814267,121350.0,121330.0,0.17118042]
[1759998622969,0.40810267,121350.0,121340.0,0.1648261]
[1759998623181,0.40810267,121350.0,121330.0,0.16483968]
[1759998623182,0.17242267,121350.0,121330.0,0.16483968]
[1759998623393,0.17242267,121350.0,121340.0,0.1648261]
[1759998623394,0.40810267,121350.0,121340.0,0.1648261]
[1759998624157,0.17242267,121350.0,121340.0,0.1648261]
[1759998624378,0.40806267,121350.0,121340.0,0.1648261]
[1759998624581,0.28361322,121370.0,121350.0,0.16481252]
[1759998624782,0.28361322,121370.0,121340.0,0.1648261]
[1759998624783,0.1647991,121360.0,121340.0,0.1648261]
[1759998624988,0.40799762,121360.0,121340.0,0.1648261]
[1759998625187,0.40799762,121360.0,121350.0,0.16481252]
[1759998625758,0.40799762,121360.0,121350.0,5.014e-05]
[1759998626232,0.40799762,121360.0,121350.0,0.16486266]
[1759998626233,0.4003991,121360.0,121350.0,0.16486266]
[1759998627274,0.1647991,121360.0,121350.0,0.16486266]
[1759998627486,0.2356,121360.0,121350.0,0.16486266]
[1759998627700,0.40035894,121360.0,121350.0,5.014e-05]
[1759998627901,0.40035894,121360.0,121350.0,0.16486266]
[1759998628529,0.34,121370.0,121360.0,0.16479894]
[1759998628741,0.74034622,121370.0,121350.0,0.16486266]
[1759998628967,0.74034622,121370.0,121360.0,0.16479894]
[1759998629174,0.74034536,121370.0,121360.0,0.16479894]
[1759998629391,0.57556,121370.0,121360.0,0.16479894]
[1759998629607,0.34,121370.0,121360.0,0.16479894]
[1759998629827,0.23556,121370.0,121360.0,0.16479894]
[1759998630042,0.16477183,121380.0,121360.0,0.16479894]
[1759998630253,0.23556,121370.0,121360.0,0.16479894]
[1759998630461,0.40034536,121370.0,121360.0,0.16479894]
[1759998630659,0.16477183,121380.0,121360.0,0.16479894]
[1759998630855,0.23556,121370.0,121360.0,0.16479894]
[1759998631279,0.16478536,121370.0,121360.0,0.16479894]
[1759998631456,0.40034536,121370.0,121350.0,0.16486266]
[1759998631666,0.40034536,121370.0,121360.0,0.16479894]
[1759998632273,0.23556,121370.0,121360.0,0.16479894]
[1759998632448,0.5047736,121380.0,121370.0,0.16478536]
[1759998632810,0.74791497,121380.0,121370.0,0.16478536]
[1759998633128,0.51235497,121380.0,121370.0,0.16478536]
[1759998633329,0.40791497,121380.0,121370.0,0.16478536]
[1759998633533,0.17235316,121380.0,121370.0,0.16478536]
[1759998633747,0.40791316,121380.0,121360.0,0.16479894]
[1759998633949,0.4079145,121380.0,121360.0,0.16479894]
[1759998634194,0.4079145,121380.0,121370.0,0.16478536]
[1759998634371,0.1723545,121380.0,121370.0,0.16478536]
[1759998634593,0.4079145,121380.0,121360.0,0.16479894]
[1759998635154,0.61650287,121370.0,121350.0,0.17310328]
[1759998635357,0.16479894,121360.0,121350.0,0.16486249]
[1759998635498,0.95651645,121360.0,121350.0,5.014e-05]
[1759998635904,1.19203645,121360.0,121350.0,5.014e-05]
[1759998636312,0.5123901,121360.0,121350.0,5.014e-05]
[1759998636487,0.8052601,121360.0,121350.0,5.014e-05]
[1759998636687,1.25697761,121360.0,121350.0,5.014e-05]
[1759998636893,1.14625967,121360.0,121350.0,5.014e-05]
[1759998637095,1.22713967,121360.0,121350.0,5.014e-05]
[1759998637513,1.38177967,121360.0,121350.0,5.014e-05]
[1759998637870,0.63719216,121360.0,121350.0,5.014e-05]
[1759998638070,0.83103216,121360.0,121350.0,5.014e-05]
[1759998638207,0.43071322,121360.0,121350.0,0.16486266]
[1759998638412,0.00759116,121360.0,121350.0,0.16486266]
[1759998638625,0.16478536,121370.0,121350.0,0.16743655]
[1759998639007,0.71554645,121360.0,121350.0,5.014e-05]
[1759998639202,1.37955105,121360.0,121350.0,5.014e-05]
[1759998639414,0.84695354,121360.0,121350.0,0.16743655]
[1759998639614,0.84695354,121360.0,121350.0,0.00262403]
[1759998639817,0.61143354,121360.0,121350.0,0.16743655]
[1759998640140,0.74796354,121360.0,121350.0,0.16743655]
[1759998640376,0.2431646,121360.0,121350.0,0.16743655]
[1759998640578,0.40796354,121360.0,121350.0,0.16743655]
[1759998641465,8.77848911,121360.0,121350.0,0.16743655]
[1759998641665,9.01400911,121360.0,121350.0,0.16743655]
[1759998642241,8.84921017,121360.0,121350.0,0.16743655]
[1759998642671,8.61369017,121360.0,121350.0,0.16743655]
[1759998642871,8.84921017,121360.0,121350.0,0.16743655]
[1759998643077,8.61369017,121360.0,121350.0,0.16743655]
[1759998644624,8.60608557,121360.0,121350.0,0.16743655]
[1759998646916,8.60608557,121360.0,121350.0,0.28071051]
[1759998647119,8.60608557,121360.0,121350.0,0.51623051]
[1759998647940,8.60608557,121360.0,121350.0,0.28071051]
[1759998648149,8.60608557,121360.0,121350.0,0.51623051]
[1759998648356,8.60608557,121360.0,121350.0,0.28071051]
[1759998648811,8.60608557,121360.0,121350.0,0.51623051]
[1759998649017,8.60608557,121360.0,121350.0,0.28071051]
[1759998649210,8.60608557,121360.0,121350.0,0.51623051]
[1759998650057,8.60608557,121360.0,121350.0,0.28071051]
[1759998650232,8.60608557,121360.0,121350.0,0.51619051]
[1759998650991,8.60608557,121360.0,121350.0,0.3057105]
[1759998651195,8.60608557,121360.0,121350.0,0.5411905]
[1759998651392,8.60608557,121360.0,121350.0,0.36775062]
[1759998651626,8.60608557,121360.0,121350.0,0.45347062]
[1759998651845,8.60608557,121360.0,121350.0,0.68895062]
[1759998652934,8.60608557,121360.0,121350.0,0.45347062]
[1759998653137,8.60608557,121360.0,121350.0,0.68895062]
[1759998653746,8.60608557,121360.0,121350.0,0.79347062]
[1759998653960,8.20152382,121360.0,121350.0,1.02895062]
[1759998654174,8.01471264,121360.0,121350.0,1.12895061]
[1759998654378,7.83612204,121360.0,121350.0,0.89347061]
[1759998654582,7.74661887,121360.0,121350.0,0.80775061]
[1759998654791,7.49261547,121360.0,121350.0,1.47183061]
[1759998655015,7.10620455,121360.0,121350.0,1.1432306]
[1759998655251,6.96111123,121360.0,121350.0,1.5718306]
[1759998655464,6.82411436,121360.0,121350.0,1.5718306]
[1759998655678,6.73539267,121360.0,121350.0,0.70775062]
[1759998655881,6.52822684,121360.0,121350.0,1.23635061]
[1759998656335,6.2005679,121360.0,121350.0,1.23635061]
[1759998656516,5.97616303,121360.0,121350.0,1.47183061]
[1759998656744,5.97616303,121360.0,121350.0,0.80775061]
[1759998657167,5.97616303,121360.0,121350.0,1.47183061]
[1759998657383,5.97616303,121360.0,121350.0,0.80775061]
[1759998657625,5.97616303,121360.0,121350.0,1.15059061]
[1759998657838,5.97616303,121360.0,121350.0,1.47171061]
[1759998658677,4.23017787,121360.0,121350.0,1.53790564]
[1759998658900,3.99192502,121360.0,121350.0,2.23814563]
[1759998659135,3.96721023,121360.0,121350.0,1.2077506]
[1759998659342,3.96721023,121360.0,121350.0,2.2154706]
[1759998659343,3.90249659,121360.0,121350.0,2.2154706]
[1759998659549,3.73788211,121360.0,121350.0,0.9077506]
[1759998659752,3.73788211,121360.0,121350.0,1.71547062]
[1759998659753,3.53741798,121360.0,121350.0,1.71547062]
[1759998659953,3.27111156,121360.0,121350.0,1.9154706]
[1759998660169,3.06886736,121360.0,121350.0,1.9155106]
[1759998660395,3.00642935,121360.0,121350.0,1.9154706]
[1759998660600,2.80979165,121360.0,121350.0,1.9154706]
[1759998660806,2.41868256,121360.0,121350.0,1.9154706]
[1759998660979,2.14144363,121360.0,121350.0,1.9154706]
[1759998661212,1.82932857,121360.0,121350.0,2.5154706]
[1759998661445,1.76007234,121360.0,121350.0,2.5154706]
[1759998661684,1.39170851,121360.0,121350.0,1.5077506]
[1759998661908,1.21406438,121360.0,121350.0,1.5077506]
[1759998662130,1.11415299,121360.0,121350.0,1.5077506]
[1759998662339,0.99467373,121360.0,121350.0,2.5153906]
[1759998662540,0.96995894,121360.0,121350.0,1.8505506]
[1759998662805,0.59845134,121360.0,121350.0,2.5153506]
[1759998663004,0.21383456,121360.0,121350.0,1.5077506]
[1759998663209,0.0496271,121360.0,121350.0,2.5153506]
[1759998663412,0.02491804,121360.0,121350.0,2.5153506]
[1759998663584,0.00137506,121420.0,121410.0,0.62973105]
[1759998663734,0.00137506,121420.0,121410.0,0.79853311]
[1759998663942,0.00137506,121420.0,121410.0,0.71285311]
[1759998664151,0.00137506,121420.0,121410.0,1.03481311]
[1759998664592,0.00137506,121420.0,121410.0,1.03477311]
[1759998664796,0.00137506,121420.0,121410.0,0.82868501]
[1759998664797,0.00187732,121420.0,121410.0,0.82868501]
[1759998664999,0.00187732,121420.0,121410.0,1.06488501]
[1759998665238,0.00187732,121420.0,121410.0,0.89716797]
[1759998665412,0.00187732,121420.0,121410.0,1.13340797]
[1759998665646,0.00187732,121420.0,121410.0,0.89716797]
[1759998665820,0.00187732,121420.0,121410.0,1.13336797]
[1759998666151,1e-08,121420.0,121410.0,0.89716797]
[1759998666332,1e-08,121420.0,121410.0,1.13336797]
[1759998666767,1e-08,121420.0,121410.0,0.81148797]
[1759998666976,1e-08,121420.0,121410.0,1.23988797]
[1759998667353,1e-08,121420.0,121410.0,0.81148797]
[1759998667552,1e-08,121420.0,121410.0,1.13336797]
[1759998668029,1e-08,121420.0,121410.0,1.13332797]
[1759998668232,1e-08,121420.0,121410.0,1.47604797]
[1759998668626,1e-08,121420.0,121410.0,0.81148797]
[1759998668830,1e-08,121420.0,121410.0,0.71148798]
[1759998669074,1e-08,121420.0,121410.0,1.03328798]
[1759998669266,1e-08,121420.0,121410.0,1.13324797]
[1759998669484,1e-08,121420.0,121410.0,0.81148797]
[1759998669681,1e-08,121420.0,121410.0,0.86697607]
[1759998669888,1e-08,121420.0,121410.0,1.10309607]
[1759998670317,1e-08,121420.0,121410.0,1.10305607]
[1759998670521,1e-08,121420.0,121410.0,1.13320797]
[1759998671936,1e-08,121420.0,121410.0,0.89712797]
[1759998672138,1e-08,121420.0,121410.0,1.13316797]
[1759998672527,1e-08,121420.0,121410.0,1.03316798]